bitfinex/quotes_ETHUSD_20240711
["timestamp","ask_amount","ask_price","bid_price","bid_amount"]
[1720719659255,1.10248342,3142.4,3142.3,1.44681494]
[1720719659583,1.10244601,3142.4,3142.3,1.44681494]
[1720719662140,1.10248137,3142.4,3142.3,1.44681494]
[1720719662591,1.84915351,3142.4,3142.3,1.44681494]
[1720719662878,5.03149351,3142.4,3142.2,1.44681494]
[1720719663058,1.10248137,3142.3,3142.2,1.44681494]
[1720719665563,3.18214,3142.6,3142.2,1.44681494]
[1720719665875,3.18214,3142.6,3142.5,1.44681494]
[1720719666088,2.69870553,3143.0,3142.5,1.44681494]
[1720719666089,8.66344,3143.0,3142.5,1.44681494]
[1720719666254,4.28416099,3142.9,3142.5,1.44681494]
[1720719666441,3.18177,3142.9,3142.8,1.44681494]
[1720719666649,1.10234069,3142.9,3142.8,1.44681494]
[1720719667158,4.28411069,3142.9,3142.8,1.44681494]
[1720719667359,4.28411069,3142.9,3142.6,1.44681494]
[1720719667658,3.18177,3142.9,3142.8,1.44681494]
[1720719667977,4.28412912,3142.9,3142.8,1.44681494]
[1720719668899,3.18177,3142.9,3142.8,1.55441945]
[1720719669101,4.28412811,3142.9,3142.8,1.55441945]
[1720719669437,1.10235811,3142.9,3142.8,1.55441945]
[1720719672707,1.10225317,3142.9,3142.8,1.55441945]
[1720719675845,0.49939101,3143.1,3142.8,1.55441945]
[1720719676044,0.49939101,3143.1,3143.0,1.44681494]
[1720719676218,1.6015648,3143.1,3143.0,1.44681494]
[1720719676419,1.60156032,3143.1,3143.0,1.55429335]
[1720719678555,1.60156032,3143.1,3143.0,0.10747841]
[1720719678556,3.91076032,3143.1,3143.0,0.10747841]
[1720719678761,3.18177,3142.9,3142.8,1.44681494]
[1720719678914,4.11677,3142.9,3142.8,1.55427151]
[1720719679251,5.21893931,3142.9,3142.8,1.44681494]
[1720719680237,2.03716931,3142.9,3142.8,1.44681494]
[1720719680623,1.10216931,3142.9,3142.8,1.55427151]
[1720719681060,1.10216931,3142.9,3142.8,1.44681494]
[1720719682931,4.28406153,3142.9,3142.8,1.44681494]
[1720719683143,5.38932309,3142.9,3142.8,1.55429857]
[1720719684537,8.57109309,3142.9,3142.8,0.10748363]
[1720719684824,8.57109309,3142.9,3142.2,7.47873576]
[1720719684825,3.18214,3142.6,3142.5,1.44681494]
[1720719685050,1.10229153,3142.6,3142.5,1.44681494]
[1720719685245,4.28436153,3142.6,3142.5,1.55444444]
[1720719685558,4.78380398,3142.6,3142.5,1.55444444]
[1720719686331,4.78393115,3142.6,3142.5,1.55444444]
[1720719686732,0.49944245,3142.6,3142.5,1.55444444]
[1720719686937,1.60183908,3142.6,3142.5,1.55444444]
[1720719690243,1.60183908,3142.6,3142.5,4.73661444]
[1720719691693,1.60183908,3142.6,3142.5,7.12361444]
[1720719691893,1.60183908,3142.6,3142.5,10.30578444]
[1720719692220,1.60183908,3142.6,3142.5,15.73295444]
[1720719692396,0.49944245,3142.6,3142.5,15.73295444]
[1720719692562,0.49944245,3142.6,3142.5,18.73295444]
[1720719692884,2.33715095,3144.0,3143.3,3.18136]
[1720719693093,5.49456,3144.2,3143.9,1.44681494]
[1720719693266,3.43866837,3144.1,3143.9,1.44681494]
[1720719693460,2.33664994,3144.1,3144.0,0.10699783]
[1720719693661,6.93792193,3144.1,3144.0,0.10699783]
[1720719695003,6.93792193,3144.1,3143.9,1.44681494]
[1720719695163,1.10201592,3144.0,3143.9,1.44681494]
[1720719695362,4.10201592,3144.0,3143.9,1.44681494]
[1720719696077,4.66078563,3144.0,3143.9,1.44681494]
[1720719696495,3.55876971,3144.0,3143.9,1.44681494]
[1720719696809,4.66078564,3144.0,3143.9,1.44681494]
[1720719697111,4.6607877,3144.0,3143.9,1.44681494]
[1720719699762,1.10201799,3144.0,3143.9,1.44681494]
[1720719700002,3.67984607,3144.1,3143.9,1.55361963]
[1720719700301,1.1020069,3144.0,3143.9,1.55361963]
[1720719700966,1.1020069,3144.0,3143.9,1.44681494]
[1720719701298,4.2827469,3144.0,3143.7,1.44681494]
[1720719701505,1.8982662,3143.9,3143.7,1.44681494]
[1720719701800,0.7962593,3143.9,3143.8,0.10684426]
[1720719702036,1.89828857,3143.9,3143.7,1.44681494]
[1720719702203,1.10202927,3143.8,3143.7,1.44681494]
[1720719702501,1.10202927,3143.8,3143.7,1.55369877]
[1720719703470,0.935,3144.0,3143.9,1.44681494]
[1720719703800,1.10200749,3144.0,3143.9,1.55361963]
[1720719703966,1.10200749,3144.0,3143.9,1.44681494]
[1720719705364,1.10200749,3144.0,3143.9,1.55238245]
[1720719706207,1.10200749,3144.0,3143.9,1.44681494]
[1720719707126,4.28266314,3144.0,3143.9,1.44681494]
[1720719707289,4.38991952,3144.0,3143.6,1.44681494]
[1720719707489,2.03701983,3143.9,3143.6,1.44681494]
[1720719707696,0.935,3143.9,3143.8,1.44681494]
[1720719707923,2.0370111,3143.9,3143.8,1.44681494]
[1720719708102,1.1020111,3143.9,3143.8,1.55242202]
[1720719709230,1.1020111,3143.9,3143.8,3.90912202]
[1720719709687,0.49925607,3144.1,3143.8,3.90912202]
[1720719709882,0.49925607,3144.1,3144.0,1.44681494]
[1720719710111,1.60105065,3144.1,3144.0,1.44681494]
[1720719710293,0.49925607,3144.1,3144.0,1.55234288]
[1720719710600,1.60106199,3144.1,3144.0,1.55234288]
[1720719714624,0.49925607,3144.1,3144.0,1.55234288]
[1720719715026,1.60104887,3144.1,3144.0,1.55234288]
[1720719717298,0.49925607,3144.1,3144.0,1.55234288]
[1720719717802,1.60102573,3144.1,3144.0,1.55234288]
[1720719718223,1.60102573,3144.1,3144.0,3.94464288]
[1720719718433,1.60102573,3144.1,3144.0,8.06030288]
[1720719719840,1.60102573,3144.1,3144.0,11.24096288]
[1720719720347,1.60086954,3144.1,3144.0,11.24096288]
[1720719720717,0.49925607,3144.1,3144.0,11.24096288]
[1720719721131,0.49925607,3144.1,3144.0,14.42162288]
[1720719721957,0.49925607,3144.1,3144.0,17.42162288]
[1720719724058,0.49925607,3144.1,3144.0,16.48662288]
[1720719724212,0.49925607,3144.1,3144.0,19.66728288]
[1720719724415,0.49925607,3144.1,3144.0,20.21728288]
[1720719724957,2.3311,3145.8,3145.6,1.44681494]
[1720719725161,1.10130065,3145.7,3145.6,1.44681494]
[1720719725652,1.6002679,3145.7,3145.6,1.44681494]
[1720719726615,0.49896725,3145.7,3145.6,1.44681494]
[1720719726849,1.60029247,3145.7,3145.6,1.44681494]
[1720719727221,1.60029592,3145.7,3145.6,1.44681494]
[1720719727950,4.77925592,3145.7,3145.4,1.44681494]
[1720719728122,1.10132867,3145.6,3145.4,1.44681494]
[1720719729643,0.49896725,3145.7,3145.6,1.44681494]
[1720719729949,1.60029573,3145.7,3145.6,1.44681494]
[1720719730161,0.49896725,3145.7,3145.6,1.44681494]
[1720719730757,1.60027308,3145.7,3145.6,1.44681494]
[1720719731323,1.60027308,3145.7,3145.6,1.55107029]
[1720719733535,1.60026404,3145.7,3145.6,1.55107029]
[1720719737050,1.6002579,3145.7,3145.6,1.55107029]
[1720719737453,0.49896725,3145.7,3145.6,1.55107029]
[1720719737869,1.60025755,3145.7,3145.6,1.55107029]
[1720719740195,1.60025474,3145.7,3145.6,1.55107029]
[1720719740483,1.60025398,3145.7,3145.6,1.55107029]
[1720719743898,0.49896725,3145.7,3145.6,1.55107029]
[1720719744307,1.60022007,3145.7,3145.6,1.55107029]
[1720719745010,1.60022007,3145.7,3145.6,0.10425535]
[1720719745166,4.77916007,3145.7,3145.6,1.55107029]
[1720719745362,4.77916007,3145.7,3145.6,1.44681494]
[1720719745607,4.77916007,3145.7,3145.6,1.55092619]
[1720719746108,9.08199208,3145.7,3145.6,0.10411125]
[1720719746327,10.01599208,3145.7,3145.6,0.10411125]
[1720719746480,10.01599208,3145.7,3145.4,1.44681494]
[1720719746481,6.83705208,3145.7,3145.4,1.44681494]
[1720719746673,1.10125282,3145.6,3145.4,1.44681494]
[1720719747312,3.17904,3145.6,3145.5,0.10415078]
[1720719747592,4.28042068,3145.6,3145.5,0.10415078]
[1720719747781,3.67790725,3145.7,3145.6,1.44681494]
[1720719748000,4.77928794,3145.7,3145.6,1.44681494]
[1720719748169,1.60034794,3145.7,3145.6,1.55092619]
[1720719750012,0.49896725,3145.7,3145.6,1.55092619]
[1720719750219,1.60027475,3145.7,3145.6,1.55092619]
[1720719750383,7.17501475,3145.7,3145.6,0.10411125]
[1720719750722,3.17907,3145.6,3145.4,1.44681494]
[1720719750921,1.10136395,3145.5,3145.4,1.44681494]
[1720719752176,4.28058395,3145.5,3145.2,1.44681494]
[1720719752381,1.10136395,3145.4,3145.2,1.44681494]
[1720719753822,1.10136395,3145.4,3144.9,7.47873576]
[1720719753823,1.10136395,3145.3,3144.9,7.47873576]
[1720719753985,1.10136395,3145.3,3145.0,1.44681494]
[1720719753986,3.17955,3145.1,3145.0,1.44681494]
[1720719754183,4.2810472,3145.1,3145.0,1.44681494]
[1720719754426,4.2810472,3145.1,3145.0,1.55123902]
[1720719754718,1.1014972,3145.1,3145.0,1.55123902]
[1720719757617,3.17929,3145.4,3145.2,1.44681494]
[1720719757924,1.10144263,3145.3,3145.2,1.44681494]
[1720719758108,6.3586,3145.4,3145.2,1.44681494]
[1720719758427,2.34719163,3145.3,3145.2,1.44681494]
[1720719758731,5.52653163,3145.3,3145.2,1.44681494]
[1720719759105,2.34719163,3145.3,3145.2,1.44681494]
[1720719760006,5.52653163,3145.3,3145.2,1.44681494]
[1720719760407,5.5266701,3145.3,3145.2,1.44681494]
[1720719760603,2.4048,3145.1,3145.0,1.44681494]
[1720719760819,4.7521301,3145.1,3145.0,1.44681494]
[1720719761197,3.17975,3144.9,3144.8,1.44681494]
[1720719761420,5.52712173,3144.9,3144.8,1.44681494]
[1720719763139,3.17985,3144.8,3144.6,1.44681494]
[1720719763343,2.34737173,3144.7,3144.6,1.44681494]
[1720719763702,3.18005,3144.6,3144.5,7.47873576]
[1720719763925,7.93222173,3144.6,3144.4,1.44681494]
[1720719764134,2.34737173,3144.5,3144.4,1.44681494]
[1720719764598,2.34779101,3144.5,3144.4,1.44681494]
[1720719764910,2.34779101,3144.5,3144.0,8.9255507]
[1720719764911,3.18035,3144.4,3144.0,8.9255507]
[1720719765247,6.46223133,3144.3,3144.0,8.9255507]
[1720719765401,1.24609745,3144.2,3144.0,7.47873576]
[1720719765602,1.10171388,3144.1,3144.0,8.9255507]
[1720719765802,2.34781133,3144.1,3144.0,8.9255507]
[1720719767035,2.34799422,3144.1,3144.0,8.9255507]
[1720719767413,1.10179481,3144.1,3144.0,8.9255507]
[1720719767814,1.10179481,3144.1,3144.0,12.1062107]
[1720719768014,6.17975,3144.9,3144.4,1.44681494]
[1720719768255,2.34771781,3144.8,3144.6,1.44681494]
[1720719768439,1.24604531,3144.7,3144.6,1.44681494]
[1720719768618,2.3476614,3144.7,3144.6,1.44681494]
[1720719769911,8.70520754,3144.7,3144.3,1.44681494]
[1720719770118,2.3476614,3144.6,3144.3,1.44681494]
[1720719770425,2.3476614,3144.5,3144.3,1.44681494]
[1720719770639,1.10169445,3144.4,3144.3,1.44681494]
[1720719771650,3.17986,3144.8,3144.6,1.44681494]
[1720719771960,2.34773926,3144.7,3144.6,1.44681494]
[1720719773619,2.34773926,3144.7,3144.4,1.44681494]
[1720719773829,5.243,3145.4,3144.4,1.44681494]
[1720719773830,3.18015,3144.5,3144.4,1.44681494]
[1720719774017,5.52788926,3144.5,3144.4,1.44681494]
[1720719774222,3.18026,3144.4,3144.2,1.44681494]
[1720719774534,1.10168199,3144.3,3144.2,1.44681494]
[1720719774931,5.4659,3144.6,3144.2,1.44681494]
[1720719774932,3.1802,3144.5,3144.2,1.44681494]
[1720719775149,3.1802,3144.5,3144.4,1.44681494]
[1720719775418,5.52808414,3144.5,3144.4,1.44681494]
[1720719778254,4.2819461,3144.5,3144.4,1.44681494]
[1720719778450,3.1802,3144.5,3144.4,1.44681494]
[1720719778659,5.5280926,3144.5,3144.4,1.44681494]
[1720719778852,3.1802,3144.5,3144.4,1.44681494]
[1720719779052,4.28194194,3144.5,3144.4,1.44681494]
[1720719779257,6.14303897,3144.5,3144.0,7.47873576]
[1720719779459,3.1802,3144.5,3144.4,0.10492081]
[1720719779619,6.14311048,3144.5,3144.2,1.44681494]
[1720719779822,1.71675079,3144.4,3144.2,1.44681494]
[1720719780063,1.71675079,3144.3,3144.2,1.44681494]
[1720719781134,1.71674757,3144.3,3144.2,1.44681494]
[1720719781333,1.7167514,3144.3,3144.2,1.44681494]
[1720719782318,1.7167514,3144.3,3144.0,7.47873576]
[1720719782319,1.7167514,3144.3,3144.0,8.9255507]
[1720719782517,1.7167514,3144.2,3144.0,1.44681494]
[1720719782723,1.7167514,3144.1,3144.0,1.44681494]
[1720719784554,3.18026,3144.4,3144.3,1.44681494]
[1720719784750,4.28202365,3144.4,3144.3,1.44681494]
[1720719785119,1.10176365,3144.4,3144.3,1.44681494]
[1720719786023,1.60090603,3144.4,3144.3,1.44681494]
[1720719786225,4.78115603,3144.4,3144.3,1.44681494]
[1720719787957,3.67939238,3144.4,3144.3,1.55194653]
[1720719788229,4.78118388,3144.4,3144.3,1.55194653]
[1720719788434,3.67939238,3144.4,3144.3,1.55194653]
[1720719788769,4.78118668,3144.4,3144.3,1.55194653]
[1720719789084,5.81708635,3144.4,3144.3,0.10513159]
[1720719789370,3.18042,3144.3,3144.0,1.44681494]
[1720719789578,1.1017943,3144.2,3144.0,1.44681494]
[1720719790374,4.2822743,3144.2,3144.0,1.44681494]
[1720719790580,1.1017943,3144.1,3144.0,1.44681494]
[1720719790933,1.1017943,3144.1,3143.6,9.83173576]
[1720719790934,4.2824243,3144.1,3143.8,1.44681494]
[1720719791278,4.2824243,3144.1,3143.6,7.47873576]
[1720719791279,3.18093,3143.8,3143.6,7.47873576]
[1720719791633,1.10202814,3143.7,3143.6,7.47873576]
[1720719792067,4.28298814,3143.7,3143.6,7.47873576]
[1720719792371,1.10202814,3143.7,3143.6,7.47873576]
[1720719792573,1.10202814,3143.7,3143.6,8.9255507]
[1720719793447,1.10202814,3143.7,3143.6,7.47873576]
[1720719793643,1.10202814,3143.7,3143.6,8.9255507]
[1720719794441,1.10202814,3143.7,3143.6,1.44681494]
[1720719794866,6.18042,3144.3,3144.2,1.44681494]
[1720719795079,7.28231978,3144.3,3144.2,1.44681494]
[1720719795582,8.21631978,3144.3,3144.0,1.44681494]
[1720719795876,8.21631978,3144.3,3143.1,7.47873576]
[1720719795877,6.36146,3144.0,3143.8,1.44681494]
[1720719796044,4.28265978,3143.9,3143.8,1.44681494]
[1720719796241,3.1809,3143.8,3143.6,1.44681494]
[1720719796442,1.10189978,3143.7,3143.6,1.44681494]
[1720719796649,1.10189978,3143.9,3143.8,1.44681494]
[1720719797570,4.28274978,3143.9,3143.8,1.44681494]
[1720719798246,3.18085,3143.9,3143.8,1.44681494]
[1720719798550,4.28284999,3143.9,3143.8,1.44681494]
[1720719798746,4.28283937,3143.9,3143.8,1.44681494]
[1720719798958,4.28283937,3143.9,3143.8,1.55223627]
[1720719799261,1.10198937,3143.9,3143.8,1.55223627]
[1720719801788,0.49914238,3144.4,3144.3,1.44681494]
[1720719801995,1.60092603,3144.4,3144.3,1.44681494]
[1720719802787,1.60092603,3144.4,3144.3,1.55200959]
[1720719805153,0.49914238,3144.4,3144.3,1.55200959]
[1720719805662,1.60085816,3144.4,3144.3,1.55200959]
[1720719807354,1.60085816,3144.4,3144.3,7.20095959]
[1720719808556,1.60085816,3144.4,3144.3,10.38130959]
[1720719808864,1.60072309,3144.4,3144.3,7.20095959]
[1720719809070,1.60075354,3144.4,3144.3,7.20095959]
[1720719809491,1.60075354,3144.4,3144.3,10.38130959]
[1720719809868,1.10161116,3144.4,3144.3,10.38130959]
[1720719812006,1.10161116,3144.4,3144.3,7.20095959]
[1720719812304,0.49907433,3144.8,3144.7,1.44681494]
[1720719812506,1.60066685,3144.8,3144.7,1.44681494]
[1720719812669,1.60066685,3144.8,3144.7,1.55161525]
[1720719814603,3.92926685,3144.8,3144.7,1.55161525]
[1720719814809,7.10911685,3144.8,3144.7,1.44681494]
[1720719815011,7.10911685,3144.8,3144.7,1.55162065]
[1720719815499,6.00752433,3144.8,3144.7,1.55162065]
[1720719815699,7.10920122,3144.8,3144.7,1.55162065]
[1720719815890,3.92935122,3144.8,3144.7,1.55162065]
[1720719816793,1.60075122,3144.8,3144.7,1.55162065]
[1720719818985,0.49907433,3144.8,3144.7,1.55162065]
[1720719819186,1.60069767,3144.8,3144.7,1.55162065]
[1720719819586,1.60068737,3144.8,3144.7,1.55162065]
[1720719822490,0.49907433,3144.8,3144.7,1.55162065]
[1720719822716,4.78054759,3144.8,3144.7,1.55162065]
[1720719822924,5.55860235,3144.8,3144.7,1.55162065]
[1720719823090,5.55860235,3144.8,3144.7,1.44681494]
[1720719823290,5.55860235,3144.8,3144.7,1.55159002]
[1720719825123,1.60069759,3144.8,3144.7,1.55159002]
[1720719825698,4.78054759,3144.8,3144.7,1.55159002]
[1720719826034,4.78055634,3144.8,3144.7,1.55159002]
[1720719826915,1.60070634,3144.8,3144.7,1.55159002]
[1720719827901,5.71455634,3144.8,3144.7,0.10477508]
[1720719828101,5.71455634,3144.8,3144.6,1.44681494]
[1720719828102,6.90398697,3144.8,3144.6,1.44681494]
[1720719828309,1.10163201,3144.7,3144.6,1.44681494]
[1720719829495,1.10168144,3144.7,3144.6,1.44681494]
[1720719829891,1.10167556,3144.7,3144.6,1.44681494]
[1720719830194,4.28162556,3144.7,3144.6,1.44681494]
[1720719832434,3.17995,3144.7,3144.6,1.44681494]
[1720719832730,4.2816306,3144.7,3144.6,1.44681494]
[1720719832930,3.17995,3144.7,3144.6,1.44681494]
[1720719833117,4.28163692,3144.7,3144.6,1.44681494]
[1720719835098,3.17995,3144.7,3144.6,1.44681494]
[1720719835297,4.28164688,3144.7,3144.6,1.44681494]
[1720719836318,4.28164688,3144.7,3144.6,1.55165841]
[1720719836517,4.2816373,3144.7,3144.6,1.55165841]
[1720719840224,4.28162706,3144.7,3144.6,1.55165841]
[1720719840426,3.17995,3144.7,3144.6,1.55165841]
[1720719840629,4.28164958,3144.7,3144.6,1.55165841]
[1720719841543,4.28162955,3144.7,3144.6,1.55165841]
[1720719842749,1.1016744,3144.7,3144.6,1.55165841]
[1720719842914,1.10164909,3144.7,3144.6,1.55165841]
[1720719843459,1.10164909,3144.7,3144.6,2.48565841]
[1720719843658,1.10164909,3144.7,3144.6,11.27245841]
[1720719845317,3.27017938,3145.9,3145.8,1.44681494]
[1720719845629,7.31559883,3145.9,3145.8,1.55104703]
[1720719846040,3.0,3145.9,3145.8,1.55104703]
[1720719846219,1.10129215,3145.9,3145.8,1.55104703]
[1720719846420,4.10129215,3145.9,3145.8,1.55104703]
[1720719846616,4.10129215,3145.9,3145.8,1.44681494]
[1720719847637,6.43738287,3145.9,3145.8,1.44681494]
[1720719847836,6.43738287,3145.9,3145.4,1.44681494]
[1720719847837,6.76180215,3145.9,3145.4,1.44681494]
[1720719848035,0.934,3145.6,3145.4,1.44681494]
[1720719848348,1.10129215,3145.5,3145.4,1.44681494]
[1720719848741,1.10129215,3145.5,3145.4,1.54778736]
[1720719849164,4.28043215,3145.5,3145.4,0.10097242]
[1720719849372,3.17949,3145.2,3144.8,1.44681494]
[1720719849578,3.17949,3145.2,3144.6,1.44681494]
[1720719849579,1.10152661,3145.1,3144.6,1.44681494]
[1720719849732,2.03552661,3145.1,3144.6,1.44681494]
[1720719849926,1.10152661,3145.0,3144.6,1.44681494]
[1720719850476,1.10152661,3145.0,3144.3,3.18034]
[1720719850477,1.10152661,3145.0,3144.8,1.44681494]
[1720719850976,1.10152661,3144.9,3144.8,1.44681494]
[1720719851126,1.10152661,3145.1,3144.9,0.10117011]
[1720719851532,1.10152661,3145.1,3145.0,0.10113056]
[1720719851762,1.10152661,3145.1,3144.7,1.44681494]
[1720719851931,1.10152661,3145.1,3145.0,0.10113056]
[1720719852133,5.3106119,3145.1,3144.7,1.44681494]
[1720719852350,1.10152661,3145.0,3144.8,0.10120965]
[1720719852865,1.10157038,3144.9,3144.8,0.10120965]
[1720719853230,4.20908529,3145.1,3144.8,0.10120965]
[1720719853437,1.10157926,3145.0,3144.8,0.10120965]
[1720719853671,3.17954,3145.1,3144.9,1.44681494]
[1720719853973,1.10155157,3145.0,3144.9,1.44681494]
[1720719856105,1.10155157,3145.0,3144.7,1.44681494]
[1720719856306,3.17954,3145.1,3144.7,1.44681494]
[1720719856307,1.10158545,3144.9,3144.7,1.44681494]
[1720719856485,1.10158545,3144.8,3144.7,1.44681494]
[1720719856657,1.10158545,3145.0,3144.7,1.44681494]
[1720719857492,3.17985,3144.8,3144.7,1.44681494]
[1720719857693,4.28143545,3144.8,3144.7,1.44681494]
[1720719857911,3.17997,3144.7,3144.5,1.44681494]
[1720719858116,4.28171545,3144.6,3144.3,1.44681494]
[1720719858399,4.28174545,3144.5,3144.3,1.44681494]
[1720719858573,1.52975999,3144.4,3144.3,1.44681494]
[1720719859479,0.42817454,3144.4,3144.3,1.44681494]
[1720719859666,1.10180753,3144.4,3144.3,1.44681494]
[1720719859866,1.10180753,3144.4,3144.3,1.54816289]
[1720719860104,1.10180753,3144.4,3144.3,1.44681494]
[1720719860289,1.10180753,3144.4,3144.3,1.54816289]
[1720719860803,4.28205753,3144.4,3144.3,1.54816289]
[1720719861006,4.28205753,3144.4,3144.3,1.44681494]
[1720719862338,4.28205753,3144.4,3144.1,1.44681494]
[1720719862339,3.18039,3144.3,3144.1,1.44681494]
[1720719862612,1.10180753,3144.2,3144.1,1.44681494]
[1720719863105,6.36081,3144.3,3144.1,1.44681494]
[1720719863269,1.10187115,3144.2,3144.1,1.44681494]
[1720719863470,1.10187152,3144.2,3144.1,1.44681494]
[1720719864282,4.28232152,3144.2,3144.1,1.44681494]
[1720719865672,4.2823422,3144.2,3144.1,1.44681494]
[1720719866216,4.2823422,3144.2,3144.1,1.54861863]
[1720719866715,4.28234133,3144.2,3144.1,1.54861863]
[1720719867013,13.59450532,3144.2,3144.1,0.10180369]
[1720719867216,3.18076,3143.9,3143.8,7.48]
[1720719867424,4.28265133,3143.9,3143.8,7.48]
[1720719868125,4.28265133,3143.9,3143.8,8.92681494]
[1720719868833,1.10189133,3143.9,3143.8,7.48]
[1720719869027,1.10189133,3144.0,3143.8,8.92681494]
[1720719869596,4.28260133,3144.0,3143.8,8.92681494]
[1720719869895,4.2827127,3143.9,3143.8,7.48]
[1720719870126,4.28271845,3143.9,3143.8,7.48]
[1720719870300,3.18096,3143.7,3143.4,1.44681494]
[1720719870634,4.28310845,3143.6,3143.4,1.44681494]
[1720719870927,1.10195845,3143.5,3143.4,1.44681494]
[1720719872455,1.10195845,3143.6,3143.4,1.44681494]
[1720719872655,1.10195845,3143.5,3143.4,1.44681494]
[1720719872862,4.28302845,3143.6,3143.4,1.44681494]
[1720719873023,1.10195845,3143.5,3143.4,1.44681494]
[1720719873218,3.18107,3143.6,3143.4,1.44681494]
[1720719873424,1.10205938,3143.5,3143.4,1.44681494]
[1720719873855,1.10205934,3143.5,3143.4,1.44681494]
[1720719876078,1.10203314,3143.5,3143.4,1.44681494]
[1720719876766,1.10201984,3143.5,3143.4,1.44681494]
[1720719879466,1.10201984,3143.5,3143.4,3.73781494]
[1720719880289,6.18068,3144.0,3143.4,3.73781494]
[1720719880583,1.10196346,3143.9,3143.4,3.73781494]
[1720719880788,1.10196346,3143.8,3143.4,3.73781494]
[1720719880950,6.18068,3144.0,3143.7,1.44681494]
[1720719881146,1.10195362,3143.9,3143.8,0.10197313]
[1720719881361,1.10195362,3143.9,3143.7,1.44681494]
[1720719881554,1.10195362,3143.8,3143.7,1.44681494]
[1720719881955,1.10195362,3143.9,3143.7,1.44681494]
[1720719882976,4.10195362,3144.1,3143.7,1.44681494]
[1720719883168,1.10195362,3144.0,3143.9,1.44681494]
[1720719883648,0.935,3144.2,3143.9,1.44681494]
[1720719883849,1.10189551,3144.1,3143.9,1.44681494]
[1720719884046,0.935,3144.2,3143.9,1.44681494]
[1720719884293,1.10190356,3144.1,3143.9,1.44681494]
[1720719884448,1.10190356,3144.0,3143.9,1.44681494]
[1720719884649,1.10190356,3144.1,3143.9,1.44681494]
[1720719884880,1.10190356,3144.0,3143.9,1.44681494]
[1720719885084,4.28256356,3144.0,3143.9,1.44681494]
[1720719885284,3.18078,3143.9,3143.7,1.44681494]
[1720719885499,1.10190356,3143.8,3143.7,1.44681494]
[1720719886084,1.10190356,3143.9,3143.7,1.44681494]
[1720719886285,1.10190356,3143.8,3143.7,1.44681494]
[1720719886587,1.10193809,3143.9,3143.7,1.44681494]
[1720719887072,3.18066,3144.0,3143.7,1.44681494]
[1720719887259,1.10195998,3143.9,3143.7,1.44681494]
[1720719887463,1.10195998,3143.8,3143.7,1.44681494]
[1720719887888,1.10195998,3143.8,3143.7,3.84101494]
[1720719888093,1.10195998,3144.1,3143.7,1.44681494]
[1720719888254,1.10195998,3144.0,3143.7,1.44681494]
[1720719888452,1.10195998,3143.9,3143.7,1.44681494]
[1720719888655,1.10195998,3143.8,3143.7,1.44681494]
[1720719890694,1.10195943,3143.8,3143.7,1.44681494]
[1720719894208,1.10196972,3143.8,3143.7,1.44681494]
[1720719894610,3.18078,3143.9,3143.7,1.44681494]
[1720719894796,1.10197924,3143.8,3143.7,1.44681494]
[1720719895304,3.37727924,3143.8,3143.7,1.44681494]
[1720719895471,8.24244516,3143.8,3143.7,1.44681494]
[1720719895999,15.67061216,3143.8,3143.7,1.44681494]
[1720719896501,15.67067767,3143.8,3143.7,1.44681494]
[1720719897618,18.85153735,3143.8,3143.7,1.44681494]
[1720719897826,2.3801,3143.7,3143.1,1.44681494]
[1720719898031,0.935,3143.4,3143.1,1.44681494]
[1720719898329,1.10215578,3143.3,3143.1,1.44681494]
[1720719898531,1.10215578,3143.2,3143.1,1.44681494]
[1720719898838,1.10219243,3143.3,3143.1,1.44681494]
[1720719899133,1.10219243,3143.2,3143.1,1.44681494]
[1720719899691,1.10217138,3143.2,3143.1,1.44681494]
[1720719901419,4.28364138,3143.2,3143.1,1.44681494]
[1720719902422,3.18147,3143.2,3143.1,1.44681494]
[1720719902636,4.28367899,3143.2,3143.1,1.44681494]
[1720719904743,4.89908897,3143.2,3143.1,1.44681494]
[1720719905939,4.89909626,3143.2,3143.1,1.44681494]
[1720719906302,1.71762729,3143.2,3143.1,1.44681494]
[1720719906750,1.71762729,3143.2,3143.1,1.54924371]
[1720719909012,5.51785974,3143.5,3143.3,1.44681494]
[1720719909314,5.51785974,3143.5,3143.4,0.10233166]
[1720719909510,13.51233912,3143.5,3143.4,0.10233166]
[1720719909710,12.94743912,3143.5,3143.3,1.44681494]
[1720719909935,2.65257938,3143.4,3143.3,1.44681494]
[1720719910338,2.65257938,3143.4,3142.6,3.18201]
[1720719910339,7.51151929,3143.4,3143.1,1.44681494]
[1720719910541,3.18147,3143.2,3143.1,1.44681494]
[1720719910748,5.83404938,3143.2,3143.1,1.44681494]
[1720719911048,4.89904938,3143.2,3143.1,1.44681494]
[1720719912780,6.00129763,3143.2,3143.1,1.44681494]
[1720719912945,4.89908579,3143.2,3143.1,1.44681494]
[1720719913861,1.71761579,3143.2,3143.1,1.5492401]
[1720719914784,4.89908579,3143.2,3143.1,1.5492401]
[1720719916179,4.28368179,3143.2,3143.1,1.5492401]
[1720719916481,5.73907784,3143.2,3143.1,0.10242516]
[1720719916682,5.73907784,3143.2,3142.2,3.18238]
[1720719916683,3.18205,3142.7,3142.2,1.44681494]
[1720719916867,1.71772285,3142.6,3142.2,1.44681494]
[1720719917070,4.89991285,3142.5,3142.2,1.44681494]
[1720719917249,1.71772285,3142.4,3142.2,1.44681494]
[1720719917444,1.71772285,3142.3,3142.2,1.44681494]
[1720719919147,4.11705,3142.7,3142.5,1.44681494]
[1720719919148,3.18215,3142.6,3142.5,1.44681494]
[1720719919549,4.90016428,3142.6,3142.5,1.44681494]
[1720719919950,1.71801428,3142.6,3142.5,1.44681494]
[1720719920653,3.1822,3142.5,3142.2,1.44681494]
[1720719920863,1.71801428,3142.4,3142.2,1.44681494]
[1720719921076,1.71801428,3142.3,3142.2,1.44681494]
[1720719922168,3.18253,3142.2,3141.8,1.44681494]
[1720719922502,3.18278,3141.9,3141.8,1.44681494]
[1720719922711,4.90079428,3141.9,3141.8,1.44681494]
[1720719922877,4.90117257,3141.9,3141.8,1.44681494]
[1720719925373,1.71839257,3141.9,3141.8,1.44681494]
[1720719925986,4.90117257,3141.9,3141.8,1.44681494]
[1720719926187,5.95363783,3141.9,3141.8,1.44681494]
[1720719926417,3.18299,3141.7,3141.6,1.44681494]
[1720719926709,3.18299,3141.7,3140.8,2.4255]
[1720719926710,13.494137,3141.7,3141.3,1.44681494]
[1720719926916,1.71875967,3141.6,3141.3,1.44681494]
[1720719927115,1.71875967,3141.5,3141.3,1.44681494]
[1720719927335,1.71875967,3141.4,3141.3,1.44681494]
[1720719927917,4.90204967,3141.4,3141.3,1.44681494]
[1720719928106,5.39225464,3141.4,3141.3,1.44681494]
[1720719928301,5.39225464,3141.4,3140.5,3.1849301]
[1720719928302,5.39225464,3141.4,3141.1,1.44681494]
[1720719928613,3.18349,3141.2,3141.1,1.44681494]
[1720719928922,4.90224967,3141.2,3141.1,1.44681494]
[1720719929095,1.71875967,3141.2,3141.1,1.44681494]
[1720719929285,1.71886228,3141.2,3141.1,1.44681494]
[1720719929487,1.10290251,3141.2,3141.1,1.44681494]
[1720719929721,1.10283372,3141.2,3141.1,1.44681494]